[Event "FIDE World Rapid-ch Open 2018"]
[White "Inarkiev, Ernesto"]
[Black "Cheparinov, Ivan"]
[Site "St. Petersburg"]
[Round "6.30"]
[Annotator "ChessBase"]
[Result "0-1"]
[Date "2018.12.27"]
[WhiteElo "2693"]
[BlackElo "2709"]
[PlyCount "75"]
[TimeControl "900+10"]

1. c4 {[%emt 0:0:0]} e6 {[%emt 0:0:0]} 2. Nc3 {[%emt 0:0:0]} Nf6 {[%emt 0:0:0]
} 3. e4 {[%emt 0:0:0]} d5 {[%emt 0:0:0]} 4. cxd5 {[%emt 0:0:0]} exd5 {[%emt 0:0:0]} 5. e5 {[%emt 0:0:1]} Ne4 {[%emt 0:0:0]} 6. d4 {[%emt 0:0:3]
} Bb4 {[%emt 0:0:21]} 7. Qa4+ {[%emt 0:0:6]} Nc6 {[%emt 0:0:0]} 8. Bb5 {[%emt 0:0:2]} 0-0 {[%emt 0:0:10]} 9. Nge2 {[%emt 0:0:2]} Nxd4 {[%emt 0:0:44]} 10. Nxd4 {[%emt 0:0:2]} c5 {[%emt 0:0:1]} 11. Nde2 {[%emt 0:0:1]
} d4 {[%emt 0:0:2]} 12. 0-0 {[%emt 0:0:2]} dxc3 {[%emt 0:0:0]} 13. a3 {[%emt 0:0:2]} Nd2 {[%emt 0:2:10]} 14. axb4 {[%emt 0:0:4]} Nxf1 {[%emt 0:0:27]} 15. bxc3 {[%emt 0:0:2]} a6 {[%emt 0:1:55]} 16. Qc2 {[%emt 0:0:15]
} Bf5 {[%emt 0:0:10]} 17. Qxf5 {[%emt 0:0:38]} Qd1 {[%emt 0:0:0]} 18. Bb2 {[%emt 0:3:5]} Rfd8 {[%emt 0:0:8]} 19. Nd4 {[%emt 0:7:24]} Ne3+ {[%emt 0:0:2]} 20. Rxd1 {[%emt 0:0:1]} Nxf5 {[%emt 0:0:1]} 21. Bd3 {[%emt 0:3:10]
} cxd4 {[%emt 0:0:20]} 22. c4 {[%emt 0:0:1]} Ne7 {[%emt 0:0:0]} 23. f4 {[%emt 0:0:57]} Rac8 {[%emt 0:1:3]} 24. Kf2 {[%emt 0:1:1]} b5 {[%emt 0:1:24]} 25. cxb5 {[%emt 0:0:1]} axb5 {[%emt 0:0:2]} 26. Kf3 {[%emt 0:0:1]
} Nc6 {[%emt 0:1:5]} 27. Bxb5 {[%emt 0:0:22]} Nxb4 {[%emt 0:0:0]} 28. Rxd4 {[%emt 0:0:1]} Nc2 {[%emt 0:0:41]} 29. Rd6 {[%emt 0:1:10]} Rb8 {[%emt 0:0:25]} 30. Rxd8+ {[%emt 0:0:1]} Rxd8 {[%emt 0:0:1]} 31. Bc4 {[%emt 0:0:53]
} Rb8 {[%emt 0:0:30]} 32. e6 {[%emt 0:0:40]} Rxb2 {[%emt 0:0:0]} 33. exf7+ {[%emt 0:0:9]} Kf8 {[%emt 0:0:1]} 34. g4 {[%emt 0:0:2]} Nd4+ {[%emt 0:0:14]} 35. Ke4 {[%emt 0:0:2]} Nc6 {[%emt 0:0:1]} 36. g5 {[%emt 0:0:10]
} Rb4 {[%emt 0:0:5]} 37. Kd5 {[%emt 0:0:17]} Nd8 {[%emt 0:0:0]} 38. Kd4 0-1

[Event "FIDE World Rapid-ch Open 2018"]
[White "Sarana, Alexey"]
[Black "Morozevich, Alexander"]
[Site "St. Petersburg"]
[Round "6.31"]
[Annotator "ChessBase"]
[Result "1/2-1/2"]
[Date "2018.12.27"]
[WhiteElo "2618"]
[BlackElo "2656"]
[PlyCount "38"]
[TimeControl "900+10"]

1. d4 {[%emt 0:0:0]} Nf6 {[%emt 0:0:49]} 2. c4 {[%emt 0:0:0]} c5 {[%emt 0:0:0]} 3. d5 {[%emt 0:0:0]} g6 {[%emt 0:0:1]} 4. Nc3 {[%emt 0:0:0]} Bg7 {[%emt 0:0:1]} 5. e4 {[%emt 0:0:1]} 0-0 {[%emt 0:0:1]} 6. Nf3 {[%emt 0:0:0]} d6 {[%emt 0:0:1]} 7. h3 {[%emt 0:0:1]} a6 {[%emt 0:0:1]} 8. Bd3 {[%emt 0:0:2]
} b5 {[%emt 0:0:0]} 9. 0-0 {[%emt 0:1:5]} b4 {[%emt 0:0:5]} 10. Ne2 {[%emt 0:0:6]} e5 {[%emt 0:0:7]} 11. a3 {[%emt 0:1:49]} a5 {[%emt 0:0:21]
} 12. Ng3 {[%emt 0:0:11]} Nbd7 {[%emt 0:1:34]} 13. Be3 {[%emt 0:0:17]
} Qc7 {[%emt 0:0:6]} 14. Qd2 {[%emt 0:0:23]} Ba6 {[%emt 0:0:0]} 15. Rfc1 {[%emt 0:1:10]} Rfb8 {[%emt 0:0:33]} 16. b3 {[%emt 0:1:24]} Qd8 {[%emt 0:1:26]} 17. axb4 {[%emt 0:1:9]} axb4 {[%emt 0:0:12]} 18. Ra2 {[%emt 0:0:36]
} Bb7 {[%emt 0:0:3]} 19. Rca1 {[%emt 0:0:1]} Rxa2 {[%emt 0:0:0]} 1/2-1/2

[Event "FIDE World Rapid-ch Open 2018"]
[White "Matlakov, Maxim"]
[Black "Postny, Evgeny"]
[Site "St. Petersburg"]
[Round "6.32"]
[Annotator "ChessBase"]
[Result "1-0"]
[Date "2018.12.27"]
[WhiteElo "2700"]
[BlackElo "2615"]
[PlyCount "101"]
[TimeControl "900+10"]

1. e4 {[%emt 0:0:0]} e5 {[%emt 0:0:0]} 2. Nf3 {[%emt 0:0:0]} Nc6 {[%emt 0:0:0]
} 3. d4 {[%emt 0:0:0]} exd4 {[%emt 0:0:0]} 4. Nxd4 {[%emt 0:0:0]} Bb4+ {[%emt 0:0:37]} 5. c3 {[%emt 0:0:8]} Bc5 {[%emt 0:0:2]} 6. Be3 {[%emt 0:0:21]} Bb6 {[%emt 0:0:2]} 7. Nf5 {[%emt 0:0:13]} Bxe3 {[%emt 0:0:45]
} 8. Nxe3 {[%emt 0:0:3]} d6 {[%emt 0:0:3]} 9. g3 {[%emt 0:0:0]} Nge7 {[%emt 0:0:10]} 10. Bg2 {[%emt 0:0:8]} 0-0 {[%emt 0:0:2]} 11. 0-0 {[%emt 0:0:50]} Kh8 {[%emt 0:0:8]} 12. Nd2 {[%emt 0:1:5]} f5 {[%emt 0:0:0]} 13. f4 {[%emt 0:0:2]} fxe4 {[%emt 0:0:16]} 14. Nxe4 {[%emt 0:0:28]} Nf5 {[%emt 0:0:24]} 15. Re1 {[%emt 0:2:23]} Nce7 {[%emt 0:3:3]} 16. Nxf5 {[%emt 0:1:44]
} Nxf5 {[%emt 0:0:6]} 17. Ng5 {[%emt 0:0:4]} h6 {[%emt 0:0:0]} 18. Ne6 {[%emt 0:1:39]} Bxe6 {[%emt 0:0:3]} 19. Rxe6 {[%emt 0:0:2]} c6 {[%emt 0:0:2]} 20. Qe2 {[%emt 0:0:30]} Rf6 {[%emt 0:4:21]} 21. Re1 {[%emt 0:0:8]
} d5 {[%emt 0:1:9]} 22. Re5 {[%emt 0:1:30]} Qb6+ {[%emt 0:0:0]} 23. Kh1 {[%emt 0:0:5]} Raf8 {[%emt 0:0:12]} 24. b3 {[%emt 0:0:21]} Nd6 {[%emt 0:0:42]} 25. Qd3 {[%emt 0:0:7]} Qa5 {[%emt 0:1:10]} 26. R1e2 {[%emt 0:0:20]
} Qa3 {[%emt 0:0:26]} 27. Qc2 {[%emt 0:0:50]} Qa6 {[%emt 0:0:0]} 28. h4 {[%emt 0:0:59]} Nf5 {[%emt 0:0:24]} 29. Kh2 {[%emt 0:0:2]} Qb6 {[%emt 0:0:10]} 30. Re8 {[%emt 0:0:35]} Qc7 {[%emt 0:0:19]} 31. Qd3 {[%emt 0:0:13]
} Qf7 {[%emt 0:0:11]} 32. Rxf8+ {[%emt 0:0:42]} Qxf8 {[%emt 0:0:0]} 33. Re5 {[%emt 0:0:3]} Nd6 {[%emt 0:0:19]} 34. Qe3 {[%emt 0:0:8]} a6 {[%emt 0:0:35]} 35. Bf1 {[%emt 0:0:16]} Rf5 {[%emt 0:0:31]} 36. Re6 {[%emt 0:1:38]
} Rf6 {[%emt 0:0:7]} 37. Bd3 {[%emt 0:0:53]} Ne4 {[%emt 0:0:0]} 38. Re5 {[%emt 0:0:15]} Nd6 {[%emt 0:0:18]} 39. h5 {[%emt 0:0:8]} Qd8 {[%emt 0:0:34]} 40. Bg6 {[%emt 0:0:5]} Rf8 {[%emt 0:0:7]} 41. Re7 {[%emt 0:0:18]
} Ne4 {[%emt 0:0:40]} 42. Rxb7 {[%emt 0:0:2]} Nf6 {[%emt 0:0:0]} 43. Qe7 {[%emt 0:0:47]} Qxe7 {[%emt 0:0:19]} 44. Rxe7 {[%emt 0:0:1]} c5 {[%emt 0:0:8]} 45. Rc7 {[%emt 0:0:20]} c4 {[%emt 0:0:37]} 46. bxc4 {[%emt 0:0:4]
} dxc4 {[%emt 0:0:2]} 47. Rxc4 {[%emt 0:0:5]} Rd8 {[%emt 0:0:0]} 48. Kh3 {[%emt 0:0:9]} Kg8 {[%emt 0:0:3]} 49. Rc7 {[%emt 0:0:2]} Kf8 {[%emt 0:0:3]} 50. Rf7+ {[%emt 0:0:5]} Kg8 {[%emt 0:0:1]} 51. Ra7 {[%emt 0:0:2]
} 1-0

[Event "FIDE World Rapid-ch Open 2018"]
[White "Novikov, Stanislav"]
[Black "Bocharov, Dmitry"]
[Site "St. Petersburg"]
[Round "6.33"]
[Annotator "ChessBase"]
[Result "1-0"]
[Date "2018.12.27"]
[WhiteElo "2540"]
[BlackElo "2533"]
[PlyCount "128"]
[TimeControl "900+10"]

1. e4 {[%emt 0:0:0]} c5 {[%emt 0:0:0]} 2. Nf3 {[%emt 0:0:0]} d6 {[%emt 0:0:0]} 3. d4 {[%emt 0:0:2]} cxd4 {[%emt 0:0:1]} 4. Nxd4 {[%emt 0:0:2]} Nf6 {[%emt 0:0:3]} 5. Nc3 {[%emt 0:0:3]} a6 {[%emt 0:0:3]} 6. Be2 {[%emt 0:0:15]
} e6 {[%emt 0:0:40]} 7. 0-0 {[%emt 0:0:48]} Nbd7 {[%emt 0:0:0]} 8. f4 {[%emt 0:0:8]} b5 {[%emt 0:0:16]} 9. Bf3 {[%emt 0:0:37]} Bb7 {[%emt 0:0:8]
} 10. a3 {[%emt 0:0:12]} Qc7 {[%emt 0:0:48]} 11. Kh1 {[%emt 0:0:0]} Be7 {[%emt 0:0:23]} 12. Qe2 {[%emt 0:0:7]} 0-0 {[%emt 0:3:34]} 13. g4 {[%emt 0:0:19]} Nc5 {[%emt 0:0:39]} 14. g5 {[%emt 0:0:7]} Nfd7 {[%emt 0:0:0]} 15. Bg2 {[%emt 0:1:21]} Rfe8 {[%emt 0:0:7]} 16. Be3 {[%emt 0:5:23]} Bf8 {[%emt 0:1:40]} 17. Rae1 {[%emt 0:0:5]} Rac8 {[%emt 0:0:34]} 18. Qg4 {[%emt 0:2:39]
} g6 {[%emt 0:0:40]} 19. f5 {[%emt 0:0:35]} Ne5 {[%emt 0:0:11]
} 20. Qh3 {[%emt 0:0:19]} Qd7 {[%emt 0:0:59]} 21. Bc1 {[%emt 0:2:1]} Nc6 {[%emt 0:1:27]
} 22. Nxc6 {[%emt 0:0:36]} Bxc6 {[%emt 0:0:6]} 23. f6 {[%emt 0:0:15]
} a5 {[%emt 0:1:13]} 24. b4 {[%emt 0:0:13]} axb4 {[%emt 0:0:0]} 25. axb4 {[%emt 0:0:1]} Na4 {[%emt 0:0:7]} 26. Ne2 {[%emt 0:1:13]} e5 {[%emt 0:0:3]} 27. Qh4 {[%emt 0:0:24]} Bb7 {[%emt 0:0:3]} 28. Rf3 {[%emt 0:0:14]
} Rxc2 {[%emt 0:1:56]} 29. Rh3 {[%emt 0:0:1]} h6 {[%emt 0:0:0]} 30. gxh6 {[%emt 0:0:2]} Kh7 {[%emt 0:0:6]} 31. Ng1 {[%emt 0:0:32]} Rec8 {[%emt 0:0:6]} 32. Be3 {[%emt 0:0:5]} Nc3 33. Bf2 d5 {[%emt 0:1:48]} 34. Rd3 {[%emt 0:0:1]} d4 {[%emt 0:1:16]} 35. Nh3 {[%emt 0:0:3]} Qe8 {[%emt 0:0:20]
} 36. Ng5+ {[%emt 0:0:4]} Kh8 {[%emt 0:0:1]} 37. Bg3 {[%emt 0:0:52]
} Rc7 {[%emt 0:0:12]} 38. Nf3 {[%emt 0:0:39]} Rc6 {[%emt 0:0:0]} 39. Nxe5 {[%emt 0:0:25]} Re6 {[%emt 0:0:3]} 40. Rxd4 {[%emt 0:0:19]} Ne2 {[%emt 0:0:30]} 41. Rd8 {[%emt 0:0:10]} Nxg3+ {[%emt 0:0:7]} 42. hxg3 {[%emt 0:0:3]
} Rxe5 {[%emt 0:0:4]} 43. Rxe8 {[%emt 0:0:1]} Rxe8 {[%emt 0:0:0]} 44. Qg5 {[%emt 0:0:33]} Bc6 {[%emt 0:0:28]} 45. Rc1 {[%emt 0:0:9]} Rc4 {[%emt 0:0:8]} 46. Rxc4 {[%emt 0:0:6]} bxc4 {[%emt 0:0:1]} 47. b5 {[%emt 0:0:2]
} Bd7 {[%emt 0:0:1]} 48. Qd5 {[%emt 0:0:13]} Be6 {[%emt 0:0:0]} 49. Qd4 {[%emt 0:0:10]} Rc8 {[%emt 0:0:2]} 50. Qc3 {[%emt 0:0:2]} Rc5 {[%emt 0:0:18]} 51. b6 {[%emt 0:0:8]} Rh5+ {[%emt 0:0:3]} 52. Kg1 {[%emt 0:0:2]
} Bc5+ {[%emt 0:0:3]} 53. Kf1 {[%emt 0:0:1]} Bxb6 {[%emt 0:0:0]} 54. Bf3 {[%emt 0:0:43]} Rb5 {[%emt 0:0:6]} 55. Qa3 {[%emt 0:0:5]} Bc5 {[%emt 0:0:12]} 56. Qa4 {[%emt 0:0:21]} Rb2 {[%emt 0:0:16]} 57. Bg4 {[%emt 0:0:11]
} Bxg4 {[%emt 0:0:19]} 58. Qe8+ {[%emt 0:0:1]} Kh7 {[%emt 0:0:0]} 59. Qxf7+ {[%emt 0:0:1]} Kxh6 {[%emt 0:0:1]} 60. Qg7+ {[%emt 0:0:0]} Kg5 {[%emt 0:0:1]} 61. f7 {[%emt 0:0:0]} Rf2+ {[%emt 0:0:49]} 62. Ke1 {[%emt 0:0:1]} Re2+ {[%emt 0:0:3]} 63. Kf1 {[%emt 0:0:1]} Rxe4 {[%emt 0:0:0]} 64. f8=Q {[%emt 0:0:14]} Bh3# {[%emt 0:0:2]} 1-0

[Event "FIDE World Rapid-ch Open 2018"]
[White "Gareyev, Timur"]
[Black "Duda, Jan-Krzysztof"]
[Site "St. Petersburg"]
[Round "6.34"]
[Annotator "RC"]
[Result "0-1"]
[Date "2018.12.27"]
[WhiteElo "2569"]
[BlackElo "2738"]
[PlyCount "82"]
[TimeControl "900+10"]

1. g4 {[%emt 0:7:29]} d5 {[%emt 0:0:0]} 2. Bg2 {[%emt 0:0:1]} Bxg4 {[%emt 0:0:12]
} 3. c4 {[%emt 0:0:1]} d4 {[%emt 0:0:1]} 4. Bxb7 {[%emt 0:0:0]} Nd7 {[%emt 0:0:2]} 5. Bxa8 {[%emt 0:0:16]} Qxa8 {[%emt 0:0:2]} 6. f3 {[%emt 0:0:1]} e5 {[%emt 0:0:3]} 7. d3 {[%emt 0:0:2]} f5 {[%emt 0:0:31]} 8. Qa4 {[%emt 0:0:2]} Bh5 {[%emt 0:1:13]} 9. Na3 {[%emt 0:0:5]} c6 {[%emt 0:0:32]
} 10. Bd2 {[%emt 0:0:27]} Ngf6 {[%emt 0:0:6]} 11. 0-0-0 {[%emt 0:0:31]
} Be7 {[%emt 0:0:37]} 12. Bb4 {[%emt 0:0:15]} c5 {[%emt 0:0:0]} 13. Ba5 {[%emt 0:0:9]} 0-0 {[%emt 0:0:26]} 14. Nh3 {[%emt 0:0:8]} e4 {[%emt 0:2:36]} 15. Nf4 {[%emt 0:0:6]} Bf7 {[%emt 0:0:2]} 16. fxe4 {[%emt 0:0:42]
} fxe4 {[%emt 0:0:2]} 17. Rhg1 {[%emt 0:0:38]} Ne5 {[%emt 0:0:0]} 18. Bc7 {[%emt 0:0:50]} Ng6 {[%emt 0:2:48]} 19. Qa6 {[%emt 0:0:44]} Kh8 {[%emt 0:0:50]} 20. Nb5 {[%emt 0:0:30]} Nxf4 {[%emt 0:5:16]} 21. Bxf4 {[%emt 0:0:2]
} Bh5 {[%emt 0:0:8]} 22. Qe6 {[%emt 0:0:48]} Qd8 {[%emt 0:0:0]} 23. Nxa7 Re8 {[%emt 0:0:2]} 24. Nc6 {[%emt 0:0:54]} Qb6 {[%emt 0:0:1]
} 25. Nxd4 {[%emt 0:0:46]} Qa5 {[%emt 0:0:24]} 26. Rxg7 {[%emt 0:0:21]} Bd8 {[%emt 0:0:28]} 27. Re7 {[%emt 0:2:46]} Bxe7 {[%emt 0:0:5]} 28. Nc6 {[%emt 0:0:13]
} Qxa2 {[%emt 0:0:14]} 29. Be5 {[%emt 0:0:22]} Qa1+ {[%emt 0:0:0]} 30. Kd2 {[%emt 0:0:6]} e3+ {[%emt 0:0:13]} 31. Ke1 {[%emt 0:0:2]} Qa8 {[%emt 0:0:1]} 32. b4 {[%emt 0:0:20]} Rg8 {[%emt 0:0:18]} 33. Bxf6+ {[%emt 0:0:4]
} Bxf6 {[%emt 0:0:3]} 34. Qxf6+ {[%emt 0:0:1]} Rg7 {[%emt 0:0:0]} 35. Ra1 {[%emt 0:0:3]} Qxc6 {[%emt 0:0:4]} 36. Qf8+ {[%emt 0:0:53]
} Rg8 {[%emt 0:0:1]} 37. Qf1 {[%emt 0:0:2]} cxb4 {[%emt 0:0:19]} 38. Kd1 {[%emt 0:0:19]
} Qd6 {[%emt 0:0:23]} 39. Kc2 {[%emt 0:0:8]} Qd4 {[%emt 0:0:0]} 40. Ra6 {[%emt 0:0:13]} Bxe2 {[%emt 0:0:16]} 41. Qxe2 {[%emt 0:0:3]} Qc3+ {[%emt 0:0:1]} 0-1

[Event "FIDE World Rapid-ch Open 2018"]
[White "Miton, Kamil"]
[Black "Grachev, Boris"]
[Site "St. Petersburg"]
[Round "6.35"]
[Annotator "ChessBase"]
[Result "1/2-1/2"]
[Date "2018.12.27"]
[WhiteElo "2588"]
[BlackElo "2626"]
[PlyCount "79"]
[TimeControl "900+10"]

1. d4 {[%emt 0:0:0]} d5 {[%emt 0:0:0]} 2. c4 {[%emt 0:0:0]} e6 {[%emt 0:0:0]} 3. Nc3 {[%emt 0:0:6]} a6 {[%emt 0:0:0]} 4. cxd5 {[%emt 0:0:27]} exd5 {[%emt 0:0:0]} 5. Nf3 {[%emt 0:0:2]} c6 {[%emt 0:0:0]} 6. Bf4 {[%emt 0:0:37]
} Bd6 {[%emt 0:0:2]} 7. Bxd6 {[%emt 0:0:57]} Qxd6 {[%emt 0:0:0]} 8. e3 {[%emt 0:0:2]} Ne7 {[%emt 0:0:28]} 9. Qb3 {[%emt 0:0:53]} Nd7 {[%emt 0:3:32]
} 10. Bd3 {[%emt 0:0:20]} 0-0 {[%emt 0:0:18]} 11. 0-0 {[%emt 0:0:0]} Ng6 {[%emt 0:0:18]} 12. Rad1 {[%emt 0:2:51]} Nf6 {[%emt 0:0:24]} 13. e4 {[%emt 0:1:46]} dxe4 {[%emt 0:1:20]} 14. Nxe4 {[%emt 0:0:2]} Nxe4 {[%emt 0:0:2]
} 15. Bxe4 {[%emt 0:0:2]} Ne7 {[%emt 0:1:41]} 16. Rfe1 {[%emt 0:3:54]
} h6 {[%emt 0:0:27]} 17. d5 {[%emt 0:1:10]} cxd5 {[%emt 0:0:0]} 18. Bxd5 {[%emt 0:0:2]} Nxd5 {[%emt 0:0:2]} 19. Rxd5 {[%emt 0:0:3]} Qf6 {[%emt 0:1:28]} 20. Nd4 {[%emt 0:0:4]} Rd8 {[%emt 0:3:48]} 21. Rxd8+ {[%emt 0:0:45]
} Qxd8 {[%emt 0:0:1]} 22. Qb4 {[%emt 0:0:8]} a5 {[%emt 0:0:0]} 23. Qc4 {[%emt 0:0:3]} Bg4 {[%emt 0:0:42]} 24. h3 {[%emt 0:1:30]} Rc8 {[%emt 0:0:23]} 25. Qa4 {[%emt 0:0:1]} Bd7 {[%emt 0:0:14]} 26. Qb3 {[%emt 0:0:5]
} Qf6 {[%emt 0:1:2]} 27. Nf3 {[%emt 0:0:55]} Bc6 {[%emt 0:0:0]} 28. Ne5 {[%emt 0:0:17]} a4 {[%emt 0:0:27]} 29. Qc3 {[%emt 0:0:38]} Re8 {[%emt 0:0:29]} 30. Re3 {[%emt 0:0:10]} Re6 {[%emt 0:0:55]} 31. a3 {[%emt 0:0:0]} Qg5 {[%emt 0:0:10]} 32. Nxc6 {[%emt 0:0:36]} Rxc6 {[%emt 0:0:2]} 33. Re8+ {[%emt 0:0:20]} Kh7 {[%emt 0:0:1]} 34. Qd3+ {[%emt 0:0:1]} f5 {[%emt 0:0:18]
} 35. Re1 {[%emt 0:0:24]} Rc1 {[%emt 0:0:12]} 36. Rxc1 {[%emt 0:0:4]
} Qxc1+ {[%emt 0:0:2]} 37. Kh2 {[%emt 0:0:1]} Qf4+ {[%emt 0:0:0]} 38. Kg1 {[%emt 0:0:2]} Qc1+ {[%emt 0:0:1]} 39. Kh2 {[%emt 0:0:2]} Qf4+ {[%emt 0:0:29]} 40. Kg1 {[%emt 0:0:2]} 1/2-1/2

[Event "FIDE World Rapid-ch Open 2018"]
[White "Saric, Ivan"]
[Black "Indjic, Aleksandar"]
[Site "St. Petersburg"]
[Round "6.36"]
[Annotator "ChessBase"]
[Result "1-0"]
[Date "2018.12.27"]
[WhiteElo "2695"]
[BlackElo "2620"]
[PlyCount "141"]
[TimeControl "900+10"]

1. e4 {[%emt 0:0:0]} c5 {[%emt 0:0:0]} 2. Nf3 {[%emt 0:0:0]} d6 {[%emt 0:0:0]} 3. Bb5+ {[%emt 0:0:10]} Nd7 {[%emt 0:0:0]} 4. d4 {[%emt 0:0:1]} cxd4 {[%emt 0:0:1]} 5. Qxd4 {[%emt 0:0:2]} a6 {[%emt 0:0:7]} 6. Be2 {[%emt 0:0:2]
} Ngf6 {[%emt 0:0:2]} 7. c4 {[%emt 0:0:4]} g6 {[%emt 0:0:14]
} 8. Nc3 {[%emt 0:0:3]} Bg7 {[%emt 0:0:2]} 9. 0-0 {[%emt 0:0:5]} 0-0 {[%emt 0:0:3]
} 10. Rd1 {[%emt 0:0:18]} Qc7 {[%emt 0:2:31]} 11. Qe3 {[%emt 0:0:0]} b6 {[%emt 0:0:5]} 12. Ng5 {[%emt 0:0:27]} h6 {[%emt 0:0:21]} 13. Nh3 {[%emt 0:0:1]} Bb7 {[%emt 0:1:52]} 14. Bd2 {[%emt 0:0:35]} e6 {[%emt 0:0:0]} 15. Rac1 {[%emt 0:0:15]} Rfe8 {[%emt 0:0:6]} 16. f4 {[%emt 0:1:50]} Rad8 {[%emt 0:2:39]} 17. Nf2 {[%emt 0:0:37]} Qb8 {[%emt 0:0:8]} 18. Qh3 {[%emt 0:1:13]
} Nc5 {[%emt 0:1:33]} 19. Bf3 {[%emt 0:0:24]} d5 {[%emt 0:0:0]} 20. cxd5 {[%emt 0:0:50]} exd5 {[%emt 0:0:1]} 21. e5 {[%emt 0:0:1]} Nfe4 {[%emt 0:0:24]} 22. Ncxe4 {[%emt 0:1:18]} dxe4 {[%emt 0:0:8]} 23. Be2 {[%emt 0:0:7]} h5 {[%emt 0:1:21]} 24. b4 {[%emt 0:0:47]} Rxd2 {[%emt 0:0:0]} 25. Rxd2 {[%emt 0:0:5]} Ne6 {[%emt 0:0:1]} 26. Qe3 {[%emt 0:1:45]} Nxf4 {[%emt 0:0:2]} 27. Qxf4 {[%emt 0:0:36]} Bxe5 {[%emt 0:0:2]} 28. Qh4 {[%emt 0:0:8]
} e3 {[%emt 0:0:3]} 29. Rd7 {[%emt 0:0:15]} exf2+ {[%emt 0:0:0]} 30. Qxf2 {[%emt 0:0:5]} Bf4 {[%emt 0:0:37]} 31. Kf1 {[%emt 0:5:49]} Bc8 {[%emt 0:0:23]} 32. Rxf7 {[%emt 0:0:27]} Kxf7 {[%emt 0:0:28]} 33. Rc4 {[%emt 0:0:1]
} Bf5 {[%emt 0:1:49]} 34. Qxf4 {[%emt 0:0:4]} Qxf4+ {[%emt 0:0:0]} 35. Rxf4 {[%emt 0:0:1]} Kf6 {[%emt 0:0:11]} 36. Bxa6 {[%emt 0:0:8]
} Ra8 {[%emt 0:0:1]} 37. b5 {[%emt 0:0:3]} Rd8 {[%emt 0:0:2]} 38. Ke1 {[%emt 0:0:20]
} Ke5 {[%emt 0:0:3]} 39. Rc4 {[%emt 0:0:4]} Be4 {[%emt 0:0:0]} 40. g3 {[%emt 0:0:8]} Rd3 {[%emt 0:0:2]} 41. Rc7 {[%emt 0:0:25]} Ra3 {[%emt 0:0:3]} 42. Bb7 {[%emt 0:0:4]} Kd6 {[%emt 0:0:41]} 43. Rf7 {[%emt 0:0:31]
} Ra7 {[%emt 0:0:20]} 44. Bd5 {[%emt 0:0:13]} Rxf7 {[%emt 0:0:0]} 45. Bxf7 {[%emt 0:0:1]} Kc5 {[%emt 0:0:4]} 46. Kd2 {[%emt 0:0:3]} Kxb5 {[%emt 0:0:14]} 47. Ke3 {[%emt 0:0:2]} Bb1 {[%emt 0:0:3]} 48. Kf4 {[%emt 0:0:1]
} Kb4 {[%emt 0:0:0]} 49. Kg5 {[%emt 0:0:6]} Ka3 {[%emt 0:0:0]} 50. Bxg6 {[%emt 0:0:28]} Bxa2 {[%emt 0:0:20]} 51. Bxh5 {[%emt 0:0:24]} b5 {[%emt 0:0:1]} 52. h4 {[%emt 0:0:6]} b4 {[%emt 0:0:0]} 53. Bd1 {[%emt 0:0:1]
} Bb3 {[%emt 0:0:12]} 54. Bxb3 {[%emt 0:0:9]} Kxb3 {[%emt 0:0:0]} 55. h5 {[%emt 0:0:1]} Kc4 {[%emt 0:0:1]} 56. h6 {[%emt 0:0:1]} b3 {[%emt 0:0:1]} 57. h7 {[%emt 0:0:1]} b2 {[%emt 0:0:1]} 58. h8=Q {[%emt 0:0:0]} b1=Q {[%emt 0:0:3]} 59. Qe5 {[%emt 0:0:11]} Qh7 {[%emt 0:0:56]} 60. g4 {[%emt 0:0:10]} Qg8+ {[%emt 0:0:3]} 61. Kf4 {[%emt 0:0:9]} Qf8+ {[%emt 0:0:15]
} 62. Kg3 {[%emt 0:0:6]} Qg8 {[%emt 0:0:16]} 63. g5 {[%emt 0:0:0]} Qh7 {[%emt 0:0:35]} 64. Qe6+ {[%emt 0:0:7]} Kd4 {[%emt 0:0:9]} 65. g6 {[%emt 0:0:12]} Qh6 {[%emt 0:0:14]} 66. Kg4 {[%emt 0:0:14]} Qh1 {[%emt 0:0:0]} 67. Qf6+ {[%emt 0:0:12]} Kd5 {[%emt 0:0:8]} 68. g7 {[%emt 0:0:19]} Qg2+ {[%emt 0:0:11]} 69. Kh5 {[%emt 0:0:3]} Qh3+ {[%emt 0:0:5]} 70. Kg6 {[%emt 0:0:2]
} Qc8 {[%emt 0:0:24]} 71. Qf5+ {[%emt 0:0:2]} 1-0

[Event "FIDE World Rapid-ch Open 2018"]
[White "Bocharov, Ivan"]
[Black "Predke, Alexandr"]
[Site "St. Petersburg"]
[Round "6.37"]
[Annotator "ChessBase"]
[Result "1/2-1/2"]
[Date "2018.12.27"]
[WhiteElo "2563"]
[BlackElo "2622"]
[PlyCount "60"]
[TimeControl "900+10"]

1. e4 {[%emt 0:0:0]} c5 {[%emt 0:0:13]} 2. Nf3 {[%emt 0:0:0]} Nf6 {[%emt 0:0:1]
} 3. Nc3 {[%emt 0:0:27]} d5 {[%emt 0:0:2]} 4. Bb5+ {[%emt 0:0:0]} Bd7 {[%emt 0:0:3]} 5. e5 {[%emt 0:3:10]} Bxb5 {[%emt 0:0:3]} 6. Nxb5 {[%emt 0:0:3]} Qd7 {[%emt 0:0:7]} 7. Qe2 {[%emt 0:1:3]} a6 {[%emt 0:0:0]} 8. Nd6+ {[%emt 0:1:15]} exd6 {[%emt 0:0:6]} 9. exf6+ {[%emt 0:0:1]
} Qe6 {[%emt 0:0:8]} 10. fxg7 {[%emt 0:0:36]} Bxg7 {[%emt 0:0:12]} 11. Ng5 {[%emt 0:0:35]} Qxe2+ {[%emt 0:0:38]} 12. Kxe2 {[%emt 0:0:1]} Nc6 {[%emt 0:0:0]} 13. d3 {[%emt 0:0:50]} 0-0 {[%emt 0:0:51]} 14. Nh3 {[%emt 0:0:14]} Nd4+ {[%emt 0:3:27]} 15. Kd1 {[%emt 0:0:4]} Ne6 {[%emt 0:0:1]} 16. Rb1 {[%emt 0:1:36]
} Rae8 {[%emt 0:0:48]} 17. Re1 {[%emt 0:0:30]} f5 {[%emt 0:0:0]} 18. Bf4 {[%emt 0:0:20]} Nxf4 {[%emt 0:0:27]} 19. Nxf4 {[%emt 0:0:23]} d4 {[%emt 0:1:46]} 20. b4 {[%emt 0:1:5]} b5 {[%emt 0:1:3]} 21. Nd5 {[%emt 0:0:48]
} Kf7 {[%emt 0:2:35]} 22. bxc5 {[%emt 0:1:29]} Rxe1+ {[%emt 0:0:0]} 23. Kxe1 {[%emt 0:0:1]} dxc5 {[%emt 0:0:1]} 24. Nc7 {[%emt 0:0:26]
} Rc8 {[%emt 0:0:55]} 25. Nxa6 {[%emt 0:0:10]} b4 {[%emt 0:0:1]} 26. a3 {[%emt 0:0:54]
} Rc6 {[%emt 0:1:40]} 27. Nb8 {[%emt 0:0:2]} Rc8 {[%emt 0:0:0]} 28. Na6 {[%emt 0:0:4]} Rc6 {[%emt 0:0:2]} 29. Nb8 {[%emt 0:0:1]} Rc8 {[%emt 0:0:1]} 30. Na6 {[%emt 0:0:0]} Rc6 {[%emt 0:0:1]} 1/2-1/2

[Event "FIDE World Rapid-ch Open 2018"]
[White "Demchenko, Anton"]
[Black "Khusnutdinov, Rustam"]
[Site "St. Petersburg"]
[Round "6.38"]
[Annotator "ChessBase"]
[Result "1/2-1/2"]
[Date "2018.12.27"]
[WhiteElo "2679"]
[BlackElo "2470"]
[PlyCount "84"]
[TimeControl "900+10"]

1. e4 {[%emt 0:0:0]} e6 {[%emt 0:0:0]} 2. d4 {[%emt 0:0:0]} d5 {[%emt 0:0:0]} 3. Nd2 {[%emt 0:0:1]} c5 {[%emt 0:0:0]} 4. exd5 {[%emt 0:0:7]} Qxd5 {[%emt 0:0:0]} 5. dxc5 {[%emt 0:0:5]} Nf6 {[%emt 0:0:1]} 6. Ngf3 {[%emt 0:0:2]
} Qxc5 {[%emt 0:0:2]} 7. Bd3 {[%emt 0:0:3]} Nbd7 {[%emt 0:0:0]} 8. 0-0 {[%emt 0:0:6]} Be7 {[%emt 0:0:13]} 9. a4 {[%emt 0:0:10]} Qc7 {[%emt 0:0:2]
} 10. a5 {[%emt 0:0:23]} Nc5 {[%emt 0:0:4]} 11. Bc4 {[%emt 0:0:0]} 0-0 {[%emt 0:0:3]} 12. Qe2 {[%emt 0:0:19]} Rd8 {[%emt 0:0:5]} 13. b3 {[%emt 0:1:33]} Bd7 {[%emt 0:0:12]} 14. Ne5 {[%emt 0:1:15]} Be8 {[%emt 0:0:0]} 15. Bb2 {[%emt 0:0:20]} Nd5 {[%emt 0:1:15]} 16. g3 {[%emt 0:0:35]} f6 {[%emt 0:0:44]} 17. Nef3 {[%emt 0:0:46]} Bf7 {[%emt 0:0:15]} 18. Nd4 {[%emt 0:0:39]
} Bf8 {[%emt 0:0:29]} 19. Rfd1 {[%emt 0:1:52]} a6 {[%emt 0:0:0]} 20. c3 {[%emt 0:0:33]} e5 {[%emt 0:0:58]} 21. Nf5 {[%emt 0:0:48]} g6 {[%emt 0:3:23]
} 22. Nh4 {[%emt 0:0:2]} Bg7 {[%emt 0:0:5]} 23. b4 {[%emt 0:0:0]} Ne6 {[%emt 0:0:1]} 24. Nhf3 {[%emt 0:3:22]} Rac8 {[%emt 0:1:17]} 25. Rac1 {[%emt 0:0:6]} f5 {[%emt 0:0:16]} 26. Bxd5 {[%emt 0:0:22]} Rxd5 {[%emt 0:0:1]
} 27. c4 {[%emt 0:0:1]} Rdd8 {[%emt 0:2:4]} 28. Bxe5 {[%emt 0:0:26]
} Nd4 {[%emt 0:1:22]} 29. Bxd4 {[%emt 0:1:36]} Bxd4 {[%emt 0:0:0]} 30. Nxd4 {[%emt 0:0:37]} Rxd4 {[%emt 0:0:1]} 31. Nf3 {[%emt 0:0:4]
} Rxc4 {[%emt 0:0:48]} 32. Rxc4 {[%emt 0:0:2]} Bxc4 {[%emt 0:0:1]} 33. Qe3 {[%emt 0:0:6]} Bb5 {[%emt 0:0:52]} 34. Ne5 {[%emt 0:0:32]} Qc2 {[%emt 0:0:0]} 35. Re1 {[%emt 0:0:9]} Qc3 {[%emt 0:0:5]} 36. Qxc3 {[%emt 0:1:9]} Rxc3 {[%emt 0:0:17]} 37. f4 {[%emt 0:0:0]} Kf8 {[%emt 0:0:1]} 38. Rd1 {[%emt 0:0:19]
} Ke7 {[%emt 0:0:9]} 39. Rd2 {[%emt 0:0:20]} Rb3 {[%emt 0:0:0]} 40. Rd4 {[%emt 0:0:2]} Rb1+ {[%emt 0:0:1]} 41. Kg2 {[%emt 0:0:1]} Rb2+ {[%emt 0:0:3]} 42. Kg1 {[%emt 0:0:4]} Rb1+ {[%emt 0:0:20]} 1/2-1/2